Cogmind - Beta 17 @@@ ROGUE MODE // 2026.07.01 @ 17:20:21 Player: star Result: Destroyed by G-67 Veteran with Field Laser Performance ------------- Evolutions (4) 2000 Regions Visited (11) 2200 Robots Destroyed (90) 450 Value Destroyed (2567) 2567 Prototype IDs (24) 480 Alien Tech Used (0) 0 Bonus (1644) 1644 TOTAL SCORE: 9341 Bonus ------- Follower Combat Kills 544 Registered with UFD 300 Met Optimus in HQ 500 Met Data Miner 300 Cogmind --------- Core Integrity 0/850 Matter 232/300 Energy 94/100 System Corruption 28% Temperature Cool (21) Movement Walking (190) Ox1 Location -5/Proximity Caves Parts ------- > --- POWER (1) -------- (None) > --- PROPULSION (4) --- Carbon-fiber Leg > --- UTILITY (6) ------ Medium Storage Unit Enhanced Optical Array Improved Signal Interpreter A0-MCA's Component Scanner > --- WEAPON (4) ------- Heavy Mace Chainsword Falx (fused) > --- INVENTORY (10) --- Micro Nuclear Core Improved Cryofiber Web Improved Targeting Computer Hardened Heavy Armor Plating Graphene Brace Authchip [R/Combat] Trap Extractor (2/4 Shock) Improved Datajack Peak State ------------ > --- POWER ------------ Light Angular Momentum Engine > --- PROPULSION ------- Carbon-fiber Leg Carbon-fiber Leg Armored Wheel > --- UTILITY ---------- Scrap Suit Medium Storage Unit Enhanced Optical Array Improved Signal Interpreter A0-MCA's Component Scanner > --- WEAPON ----------- Heavy Assault Cannon Falx Falx > --- INVENTORY -------- Large Matter Pod Weapon Cycler Improved Reaction Control System Medium Reactive Plating Graphene Brace Authchip [R/Combat] Trap Extractor Heavy Missile Launcher Improved Datajack Heavy Flail [Rating: 58] Favorites ----------- Power Heavy Ion Engine Engine Heavy Ion Engine Power Core Micro Nuclear Core Propulsion Armored Wheel Treads Armored Treads Leg Carbon-fiber Leg Wheel Armored Wheel Hover Unit Hover Unit Flight Unit VTOL Module Utility Improved Signal Interpreter Device Trap Extractor Storage Medium Storage Unit Processor Improved Signal Interpreter Hackware Authchip [R/Combat] Protection Insulated Plating Weapon Heavy Flail Energy Gun EM Pulse Gun Ballistic Gun Assault Rifle Ballistic Cannon Heavy Assault Cannon Launcher Heavy Missile Launcher Special Weapon CPS Tube Impact Weapon Heavy Flail Slashing Weapon Falx Special Melee Weapon Datajack Build | -11 -10 -9 -8 -8 -8 -8 -6 -6 -6 -6 -5 ------- Run | Yrd Mat Mat Mat Sto Rec Scr Fac Low Low Dat Pro Slots Evolved 8 | . . 2 2 . . . 4 . . . . Power . | . . . . . . . . . . . . Propulsion 2 | . . 2 . . . . . . . . . Utility 4 | . . . 2 . . . 2 . . . . Weapon 2 | . . . . . . . 2 . . . . Parts Attached 82 | 7 2 16 11 4 3 5 23 7 2 . 2 Power 10 | 1 1 2 1 1 . . 3 1 . . . Engine 8 | 1 1 2 1 1 . . 1 1 . . . Core 2 | . . . . . . . 2 . . . . Reactor . | . . . . . . . . . . . . Propulsion 33 | 2 . 11 1 2 . 4 8 4 . . 1 Treads 7 | . . . . . . . 3 4 . . . Leg 8 | 2 . . . . . . 5 . . . 1 Wheel 4 | . . . . . . 4 . . . . . Hover 3 | . . 3 . . . . . . . . . Flight 11 | . . 8 1 2 . . . . . . . Utility 17 | 1 1 . 6 . 1 . 7 1 . . . Device 5 | . . . 2 . . . 2 1 . . . Storage 2 | 1 . . . . 1 . . . . . . Processor 6 | . 1 . 3 . . . 2 . . . . Hackware 2 | . . . . . . . 2 . . . . Protection 2 | . . . 1 . . . 1 . . . . Artifact . | . . . . . . . . . . . . Weapon 22 | 3 . 3 3 1 2 1 5 1 2 . 1 Energy Gun 2 | 2 . . . . . . . . . . . Energy Cannon . | . . . . . . . . . . . . Ballistic Gun 1 | 1 . . . . . . . . . . . Ballistic Cannon 2 | . . 1 . . . . 1 . . . . Launcher 2 | . . . . 1 . . 1 . . . . Special Weapon 1 | . . . . . . . 1 . . . . Impact Weapon 7 | . . 2 2 . 2 . . . . . 1 Slashing Weapon 5 | . . . . . . 1 1 1 2 . . Piercing Weapon . | . . . . . . . . . . . . Special Melee Weapon 2 | . . . 1 . . . 1 . . . . Unidentified Prototypes 3 | . . 1 . 2 . . . . . . . Corrupted Parts 5 | . . . . . . . 4 . . . 1 System Corruption 24 | . . . . . . . 21 . . . 3 Parts Lost 47 | . 1 10 1 6 . . 19 1 6 . 3 Power 7 | . . 2 . 2 . . 2 . 1 . . Propulsion 26 | . . 7 1 4 . . 10 . 3 . 1 Utility 4 | . . . . . . . 3 . 1 . . Weapon 10 | . 1 1 . . . . 4 1 1 . 2 Highest Loss Streak 6 | . 1 6 1 3 . . 6 1 6 . 3 To Critical Strikes . | . . . . . . . . . . . . Average Backups 8 | . 4 7 6 7 9 9 7 8 8 9 8 Power . | . 1 . . 1 1 . . . 1 1 1 Propulsion . | . . 1 1 . . . . . . . . Utility 4 | . . 1 3 3 4 5 5 5 5 6 6 Weapon 1 | . 2 2 1 2 2 2 1 1 . 1 . Tool/Special . | . . . . . . . . . . . . Unused Backups 18 | . . 5 1 . 2 . 4 1 . . 5 Power . | . . . . . . . . . . . . Propulsion . | . . . . . . . . . . . . Utility 13 | . . 1 1 . 2 . 3 1 . . 5 Weapon 5 | . . 4 . . . . 1 . . . . Tool/Special . | . . . . . . . . . . . . Average Slot Usage (%) 74 | . 91 92 98 82 69 82 75 73 55 53 47 Engine 3 | . 14 10 9 6 . 1 4 2 . . . Treads 3 | . . . . . . . 1 18 7 6 . Leg 3 | . 28 3 . . . . 5 . . . . Wheel 4 | . . . . . . 12 9 . . . . Flight 7 | . . 25 35 22 18 14 . . . . . Device 4 | . . . 7 9 9 9 4 5 . . . Storage 7 | . 14 11 9 9 9 9 5 6 6 6 6 Processor 18 | . 10 11 17 18 18 18 20 20 20 20 20 Ballistic Cannon 1 | . . 3 . . . . 3 . . . . Impact Weapon 9 | . . 15 16 17 15 16 9 . . . 5 Slashing Weapon 6 | . . . . . . 1 4 16 18 20 13 Peak Build Rating 58 | 6 8 17 27 28 25 31 58 58 58 36 40 Average Rating 34 | 4 7 13 23 23 23 27 47 53 37 36 33 On Entrance 25 | . 6 7 17 27 21 25 31 41 58 36 36 Avg Prop Armor Cover (%) 6 | . . 6 . . . 8 4 . . . . Naked Turns . | . . . . . . . . . . . . Heaviest Build 43 | 14 14 14 20 20 19 27 43 39 26 19 22 Greatest Support 96 | 20 20 20 20 20 10 48 48 96 96 20 20 Greatest Overweight (x) 10 | 3 . 3 . 3 1 1 10 . 1 . 7 Average Overweight (x) . | . . . . . . . . . . . 4 Largest Inventory Capacity 10 | 8 8 8 8 8 10 10 10 10 10 10 10 Average Capacity 9 | 7 8 8 8 8 9 10 9 10 10 10 10 Most Carried 10 | 2 8 8 8 8 10 10 10 10 10 10 9 Average Carried 8 | 1 4 7 6 7 9 9 7 9 9 10 9 Final Capacity 10 | 8 8 8 8 8 10 10 10 10 10 10 10 Final Carried 10 | 2 8 7 8 8 10 10 8 10 10 10 9 Scrap Suit Usage (%) 13 | . . . . . . . 51 . . . . Parts Cannibalized 14 | . . . . . . . 14 . . . . Class Distribution -------------------- 42% | Mutant 29% | Commander-Mutant 11% | Scavenger-Mutant 8% | Scavenger-Assassin 7% | Sprinter Dominant Class ---------------- Mutant | -10/Materials Sprinter | -9/Materials Sprinter | -8/Materials Mutant | -8/Storage Mutant | -8/Recycling Commander-Mutant | -8/Scraptown Mutant | -6/Factory Scavenger-Assassin | -6/Lower Caves Mutant | -6/Lower Caves Mutant | -6/Data Miner Mutant | -5/Proximity Caves Resources | -11 -10 -9 -8 -8 -8 -8 -6 -6 -6 -6 -5 ----------- Run | Yrd Mat Mat Mat Sto Rec Scr Fac Low Low Dat Pro Matter Collected 2236 | 256 67 257 135 108 78 70 897 148 155 . 65 Remotely . | . . . . . . . . . . . . Salvage Created 3571 | . 186 479 191 439 87 . 1690 170 241 . 88 Parts 159 | . 17 20 6 17 . . 67 9 22 . 1 Haulers Intercepted 9 | . 1 3 . 2 . . 3 . . . . Recyclers Shooed 2 | . . 1 . . . . 1 . . . . Parts Field Recycled . | . . . . . . . . . . . . Retrieved Matter . | . . . . . . . . . . . . Parts Self-Destructed 30 | . . . . . . . . 11 18 . 1 Prevented 1 | . . . . . . . . . . . 1 Parts Restored . | . . . . . . . . . . . . Kills | -11 -10 -9 -8 -8 -8 -8 -6 -6 -6 -6 -5 ------- Run | Yrd Mat Mat Mat Sto Rec Scr Fac Low Low Dat Pro Combat Hostiles Destroyed 63 | . 4 16 3 7 . . 19 3 9 . 2 Melee 20 | . . 5 2 . . . 5 3 5 . . Guns 6 | . 4 2 . . . . . . . . . Cannons 10 | . . 5 . . . . 5 . . . . AOE 17 | . . . . 5 . . 7 . 4 . 1 Classes Destroyed 17 | . 4 2 2 3 . . 4 2 . . . Worker 4 | . . . 1 . . . 3 . . . . Builder 3 | . . 1 . 1 . . 1 . . . . Hauler 9 | . 1 3 . 2 . . 3 . . . . Recycler 4 | . . . . 1 . . 3 . . . . Mechanic 1 | . . . . . . . 1 . . . . Operator 2 | . 1 . . 1 . . . . . . . Watcher 2 | . . . 1 . . . 1 . . . . Swarmer 25 | . 2 11 . . . . 4 . 8 . . Grunt 20 | . 2 1 . 4 . . 8 2 1 . 2 Duelist 1 | . . . . 1 . . . . . . . Sentry 11 | . . 4 3 1 . . 3 . . . . Hunter 1 | . . . . 1 . . . . . . . Programmer 3 | . . . . . . . 3 . . . . Heavy 2 | . . . . . . . 2 . . . . Scrapoid 1 | . . . . . . . 1 . . . . Samaritan 2 | . . . . . . . . 1 1 . . Thief 1 | . . . . . . . . 1 . . . Best Kill Streak 7 | . 3 7 3 7 . . 4 1 4 . 1 Combat Bots Only 5 | . 2 5 2 5 . . 4 1 4 . 1 Max Kills in Single Turn 4 | . 1 1 1 3 . . 3 1 4 . 1 Gunslinging . | . . . . . . . . . . . . Exploded 4 | . . . . 2 . . 3 . 4 . 1 Melee 1 | . . 1 1 . . . 1 1 1 . . Uniques/NPCs Destroyed . | . . . . . . . . . . . . Combat | -11 -10 -9 -8 -8 -8 -8 -6 -6 -6 -6 -5 -------- Run | Yrd Mat Mat Mat Sto Rec Scr Fac Low Low Dat Pro Hostile Shots Fired 502 | . 23 96 28 53 . . 207 14 61 . 20 Missed 155 | . 9 29 17 16 . . 59 3 17 . 5 Hits 347 | . 14 67 11 37 . . 148 11 44 . 15 Melee 3 | . . . . . . . 1 2 . . . Projectile 344 | . 14 67 11 37 . . 147 9 44 . 15 AOE 1 | . 1 . . . . . . . . . . Critical Strikes 14 | . 2 2 1 . . . 5 1 2 . 1 Damage Taken 5657 | . 267 753 193 538 . . 2695 223 698 . 290 Core 1287 | . 21 259 28 114 . . 537 42 175 . 111 Absorbed by Shields 90 | . . . . . . . 90 . . . . Regen/Repaired (Parts) 133 | . . . . . . . 133 . . . . Core Remaining (%) 75 | 100 91 35 . . . 74 . . . . . Volleys Fired 98 | . 16 19 . 7 . . 49 . 3 . 4 Largest 2 | . 2 2 . 1 . . 1 . 1 . 1 Hottest 60 | . 60 53 . 36 . . 50 . 39 . 39 Shots Fired 123 | . 31 26 . 7 . . 50 . 5 . 4 Gun 38 | . 31 7 . . . . . . . . . Cannon 61 | . . 19 . . . . 42 . . . . Launcher 23 | . . . . 7 . . 7 . 5 . 4 Special 1 | . . . . . . . 1 . . . . Kinetic 84 | . 16 26 . . . . 42 . . . . Thermal . | . . . . . . . . . . . . Explosive 23 | . . . . 7 . . 7 . 5 . 4 Electromagnetic 15 | . 15 . . . . . . . . . . Robot Hit Streak 7 | . 5 7 . 6 . . 7 . 3 . 5 Robot Miss Streak 5 | . 2 1 . . . . 5 . . . 1 Penetration Max . | . . . . . . . . . . . . Secondary Targets . | . . . . . . . . . . . . Shots Hit Robots 245 | . 18 46 12 18 18 . 91 19 12 . 11 Core Hits 105 | . 10 14 3 16 . . 39 5 13 . 5 Critical Kills 3 | . . 1 2 . . . . . . . . Critical Parts Destroyed 12 | . . 7 2 2 . . . . . . 1 Critical Strikes 27 | . . 8 4 2 . . 10 1 . . 2 Blast 3 | . . . . . . . 3 . . . . Smash 15 | . . 8 4 2 . . . . . . 1 Sever 9 | . . . . . . . 7 1 . . 1 Melee Attacks 247 | . . 42 30 23 18 . 88 21 16 . 9 Impact 123 | . . 42 30 23 4 . 21 . . . 3 Slashing 106 | . . . . . . . 63 21 16 . 6 Piercing . | . . . . . . . . . . . . Sneak Attacks 53 | . . 4 2 5 13 . 19 9 1 . . Combat Hostiles 4 | . . . 1 . . . . 2 1 . . Follow-up Attacks 30 | . . 5 . . . . 13 5 3 . 4 Damage Inflicted 11153 | . 236 1524 486 1553 295 . 5055 704 715 . 585 Guns 296 | . 236 60 . . . . . . . . . Cannons 1488 | . . 322 . . . . 1166 . . . . Explosions 2364 | . . . . 669 . . 979 . 382 . 334 Melee 7005 | . . 1142 486 884 295 . 2910 704 333 . 251 Ramming . | . . . . . . . . . . . . Kinetic 1692 | . 144 382 . . . . 1166 . . . . Thermal . | . . . . . . . . . . . . Explosive 2364 | . . . . 669 . . 979 . 382 . 334 Electromagnetic 92 | . 92 . . . . . . . . . . Impact 3507 | . . 1142 486 884 295 . 611 . . . 89 Slashing 3498 | . . . . . . . 2299 704 333 . 162 Piercing . | . . . . . . . . . . . . Highest Corruption 28 | . . . . . . . 25 25 25 25 28 Average Corruption 18 | . . . . . . . 9 25 25 25 25 Corruption Purged . | . . . . . . . . . . . . Corruption Blocked . | . . . . . . . . . . . . Effects 161 | . . . . . . . 58 34 35 6 28 Message Errors 43 | . . . . . . . 17 6 9 2 9 Matter Fused 42 | . . . . . . . 16 12 10 . 4 Heat Flow Errors 22 | . . . . . . . 6 5 3 2 6 Energy Discharges 20 | . . . . . . . 8 4 6 . 2 Parts Fused 1 | . . . . . . . . . . 1 . Data Loss (minor) 14 | . . . . . . . 5 5 2 1 1 Data Loss (major) 9 | . . . . . . . 4 . 2 . 3 Misfires 3 | . . . . . . . 1 . 2 . . Alerts 4 | . . . . . . . . 2 1 . 1 Misdirections 3 | . . . . . . . 1 . . . 2 Overload Shots . | . . . . . . . . . . . . Overflow Damage 1456 | . . 418 134 288 105 . 395 44 1 . 71 Projectiles 101 | . . 2 . . . . 99 . . . . Explosions 31 | . . . . 14 . . 17 . . . . Melee 1324 | . . 416 134 274 105 . 279 44 1 . 71 Knockbacks 18 | . . 6 . 2 3 . 7 . . . . Impact 7 | . . 1 . 2 3 . 1 . . . . Kinetic 8 | . . 4 . . . . 4 . . . . Secondary 3 | . . 1 . . . . 2 . . . . Self-Inflicted Damage 69 | . . . . . . . 28 . 41 . . Shots 2 | . . . . . . . 1 . 1 . . Rammed . | . . . . . . . . . . . . Targets Rammed . | . . . . . . . . . . . . Kicked . | . . . . . . . . . . . . Crushed . | . . . . . . . . . . . . Highest Temperature 230 | . 72 7 7 4 . . 228 217 198 202 230 Average Temperature 73 | . 48 4 5 4 . . 63 100 94 98 79 Received Heat Transfer 1331 | . 129 153 72 108 . . 605 99 9 . 156 Siege Activations . | . . . . . . . . . . . . Martial Activations . | . . . . . . . . . . . . Shielding Activations . | . . . . . . . . . . . . Robots Disrupted . | . . . . . . . . . . . . Combat Hostiles . | . . . . . . . . . . . . Robots Corrupted 14 | . . 5 1 3 1 . 3 . . . 1 Combat Hostiles 10 | . . 4 1 2 . . 2 . . . 1 Parts Fried 19 | . . 8 2 3 3 . 3 . . . . Impact Corruptions 38 | . . 13 3 9 4 . 6 . . . 3 Robots Melted . | . . . . . . . . . . . . Combat Hostiles . | . . . . . . . . . . . . Parts Melted . | . . . . . . . . . . . . Heat Transferred . | . . . . . . . . . . . . Parts Sabotaged . | . . . . . . . . . . . . Parts Stolen . | . . . . . . . . . . . . Parts Stripped . | . . . . . . . . . . . . Power Chain Reactions . | . . . . . . . . . . . . Alert | -11 -10 -9 -8 -8 -8 -8 -6 -6 -6 -6 -5 ------- Run | Yrd Mat Mat Mat Sto Rec Scr Fac Low Low Dat Pro Maximum Alert Level 1 | . . 1 . . . . 1 . . . . Low Security (%) 83 | 100 100 70 100 100 100 . 72 . . . . Level 1 16 | . . 29 . . . . 27 . . . . Level 2 . | . . . . . . . . . . . . Level 3 . | . . . . . . . . . . . . Level 4 . | . . . . . . . . . . . . Level 5 . | . . . . . . . . . . . . High Security . | . . . . . . . . . . . . Max Security . | . . . . . . . . . . . . Peak Influence 285 | . 56 238 129 173 44 . 285 . . . . Initial 92 | . . . 92 44 44 . . . . . . Average 88 | . 16 154 95 77 4 . 118 . . . . Influence Increases 2787 | . 103 499 183 271 46 . 1197 40 200 . 248 Destroy 0b10 Robot/C 1540 | . 80 320 60 140 20 . 600 40 180 . 100 Destroy 0b10 Robot/NC 155 | . 10 20 10 30 10 . 70 . . . 5 Destroy Leader 354 | . 12 76 32 34 . . 170 . 20 . 10 Allied During Kill 102 | . . . . . 4 . 85 . . . 13 Successful Hack 14 | . . 2 . . 12 . . . . . . Select Force Hacks 30 | . . . . . . . 30 . . . . Disable Machine 90 | . . . . 30 . . 60 . . . . Destroy Structure 142 | . 1 6 6 37 . . 92 . . . . Partial Spotted 45 | . . 15 30 . . . . . . . . Lose Combat Pursuer 315 | . . 60 45 . . . 90 . . . 120 Influence Decreases 2752 | . 103 280 297 261 161 . 914 323 200 . 213 Entered New Map 364 | . . . 127 61 71 . . 105 . . . Time Decay 1809 | . 93 180 160 140 90 . 575 218 170 . 183 Lost Part 410 | . 10 100 10 60 . . 190 . 30 . 10 Lost Ally 169 | . . . . . . . 149 . . . 20 Squads Dispatched 15 | . 1 1 2 1 . . 10 . . . . Investigation 5 | . . 1 . . . . 4 . . . . Extermination 3 | . . . . . . . 3 . . . . Reinforcement 7 | . 1 . 2 1 . . 3 . . . . Assault . | . . . . . . . . . . . . Garrison . | . . . . . . . . . . . . Intercept . | . . . . . . . . . . . . Searches Triggered . | . . . . . . . . . . . . Construction Impeded . | . . . . . . . . . . . . Haulers Reinforced 1 | . . . . . . . 1 . . . . Active Scanning Responses . | . . . . . . . . . . . . Cargo Convoy Interrupts . | . . . . . . . . . . . . Stealth | -11 -10 -9 -8 -8 -8 -8 -6 -6 -6 -6 -5 --------- Run | Yrd Mat Mat Mat Sto Rec Scr Fac Low Low Dat Pro Distress Signals 7 | . 1 1 . . . . 5 . . . . Communications Jammed . | . . . . . . . . . . . . Distress Signals . | . . . . . . . . . . . . Times Spotted 128 | . 10 23 13 16 1 . 39 3 9 . 14 Peak Tracking Total 12 | . 2 12 8 8 . . 4 1 4 . 4 Tactical Retreats 18 | . . 2 2 . . . 6 . . . 8 Traps | -11 -10 -9 -8 -8 -8 -8 -6 -6 -6 -6 -5 ------- Run | Yrd Mat Mat Mat Sto Rec Scr Fac Low Low Dat Pro Traps Triggered 4 | . . . . . . . 4 . . . . Indirectly . | . . . . . . . . . . . . Trap Hack Attempts 22 | . . . 22 . . . . . . . . Triggered 1 | . . . 1 . . . . . . . . Disarmed . | . . . . . . . . . . . . Reprogrammed 2 | . . . 2 . . . . . . . . Reused . | . . . . . . . . . . . . Traps Extracted 2 | . . . 2 . . . . . . . . Installed . | . . . . . . . . . . . . Triggered . | . . . . . . . . . . . . Most Traps Carried 2 | . . . 2 2 2 2 2 2 2 2 2 Machines | -11 -10 -9 -8 -8 -8 -8 -6 -6 -6 -6 -5 ---------- Run | Yrd Mat Mat Mat Sto Rec Scr Fac Low Low Dat Pro Machines Disabled 6 | . . . . 2 . . 4 . . . . Max in Single Turn 1 | . . . . 1 . . 1 . . . . Machines Repaired . | . . . . . . . . . . . . Machines Dismantled . | . . . . . . . . . . . . Machines Sabotaged . | . . . . . . . . . . . . Overloaded Fab Kills . | . . . . . . . . . . . . Hacking | -11 -10 -9 -8 -8 -8 -8 -6 -6 -6 -6 -5 --------- Run | Yrd Mat Mat Mat Sto Rec Scr Fac Low Low Dat Pro Machines Accessed 19 | . 1 2 . . 6 2 5 . . 3 . Terminals 7 | . . 1 . . 6 . . . . . . Fabricators 1 | . . . . . . . 1 . . . . Repair Stations . | . . . . . . . . . . . . Recycling Units 4 | . 1 . . . . . 3 . . . . Scanalyzers 2 | . . 1 . . . . 1 . . . . Garrison Access . | . . . . . . . . . . . . Total Hacks 56 | . 2 6 . . 10 5 11 . . 22 . Successful 42 | . 1 2 . . 5 5 7 . . 22 . Failed 14 | . 1 4 . . 5 . 4 . . . . Catastrophic 5 | . . 2 . . 2 . 1 . . . . Database Lockouts . | . . . . . . . . . . . . Manual 22 | . . 4 . 2 12 . 4 . . . . Terminals 14 | . . 4 . . 10 . . . . . . Fabricators 4 | . . . . . . . 4 . . . . Repair Stations . | . . . . . . . . . . . . Recycling Units 6 | . 2 . . . . . 4 . . . . Scanalyzers 5 | . . 2 . . . . 3 . . . . Garrison Access . | . . . . . . . . . . . . Terminal Hacks 29 | . . . . . 2 5 . . . 22 . Record 11 | . . . . . . 5 . . . 6 . Part Schematic 10 | . . . . . . . . . . 10 . Robot Schematic 4 | . . . . . 1 . . . . 3 . Robot Analysis 1 | . . . . . 1 . . . . . . Prototype ID Bank 3 | . . . . . . . . . . 3 . Fabricator Hacks 4 | . . . . . . . 4 . . . . Load Schematic 2 | . . . . . . . 2 . . . . Build 2 | . . . . . . . 2 . . . . Repair Station Hacks . | . . . . . . . . . . . . Recycling Unit Hacks 1 | . 1 . . . . . . . . . . Retrieve Components 1 | . 1 . . . . . . . . . . Scanalyzer 2 | . . 2 . . . . . . . . . Retrieve Study 2 | . . 2 . . . . . . . . . Garrison Access Hacks . | . . . . . . . . . . . . Unauthorized Hacks 6 | . . . . . 3 . 3 . . . . Terminals 3 | . . . . . 3 . . . . . . Sabotage 2 | . . . . . 2 . . . . . . Search 1 | . . . . . 1 . . . . . . Fabricators . | . . . . . . . . . . . . Repair Stations . | . . . . . . . . . . . . Recycling Units 3 | . . . . . . . 3 . . . . Tunnel 1 | . . . . . . . 1 . . . . Fedlink 1 | . . . . . . . 1 . . . . Scrapoids 1 | . . . . . . . 1 . . . . Scanalyzers . | . . . . . . . . . . . . Garrison Access . | . . . . . . . . . . . . Data Cores Recovered 1 | . 1 . . . . . . . . . . Used . | . . . . . . . . . . . . Hacking Detections 7 | . 1 2 . . 3 . 1 . . . . Full Trace Events 3 | . . 1 . . 1 . 1 . . . . Feedback Events . | . . . . . . . . . . . . Feedback Blocked . | . . . . . . . . . . . . Robot Schematics Acquired 4 | . . . . . 1 . . . . 3 . Robots Built 4 | . . . . . . . 4 . . . . Authchips 2 | . . . . . . . 2 . . . . Time 198 | . . . . . . . 198 . . . . Total Robot Build Rating 8 | . . . . . . . 8 . . . . Part Schematics Acquired 10 | . . . . . . . . . . 10 . Parts Built . | . . . . . . . . . . . . Authchips . | . . . . . . . . . . . . Time . | . . . . . . . . . . . . Total Part Build Rating . | . . . . . . . . . . . . Part Studies Acquired 2 | . . 2 . . . . . . . . . Parts Repaired . | . . . . . . . . . . . . Time . | . . . . . . . . . . . . Parts Recycled . | . . . . . . . . . . . . Recycled Matter . | . . . . . . . . . . . . Retrieved Matter . | . . . . . . . . . . . . Retrieved Components 9 | . 9 . . . . . . . . . . Parts Scanalyzed . | . . . . . . . . . . . . Part Schematics Acquired . | . . . . . . . . . . . . Parts Damaged . | . . . . . . . . . . . . Bothacking | -11 -10 -9 -8 -8 -8 -8 -6 -6 -6 -6 -5 ------------ Run | Yrd Mat Mat Mat Sto Rec Scr Fac Low Low Dat Pro Used RIF Installer . | . . . . . . . . . . . . Robots Hacked 4 | . . . . . . . 4 . . . . Non-combat 3 | . . . . . . . 3 . . . . Combat 1 | . . . . . . . 1 . . . . Robot Hacks Applied 4 | . . . . . . . 4 . . . . parse_system 2 | . . . . . . . 2 . . . . find_recycling 1 | . . . . . . . 1 . . . . find_station 1 | . . . . . . . 1 . . . . Relay Couplers Released . | . . . . . . . . . . . . Fabnet Peak Effective % . | . . . . . . . . . . . . Robots Rewired 9 | . . . . . 9 . . . . . . Allies Hacked . | . . . . . . . . . . . . Hacks Repelled . | . . . . . . . . . . . . Allies | -11 -10 -9 -8 -8 -8 -8 -6 -6 -6 -6 -5 -------- Run | Yrd Mat Mat Mat Sto Rec Scr Fac Low Low Dat Pro Total Allies 19 | . . . . . 9 . 9 . . . 1 Largest Group 8 | . . . . . 8 8 8 . . . 1 Highest-Rated Group 140 | . . . . . 112 112 140 . . . 96 Highest-Rated Ally 96 | . . . . . 27 27 28 . . . 96 Initial UFD Resources 33 | . . . . . . . 22 29 29 29 33 Total Orders . | . . . . . . . . . . . . Ally Attacks 90 | . . . . . 1 . 70 . . . 19 Total Damage 1939 | . . . . . 21 . 1246 . . . 672 Kills 20 | . . . . . 1 . 15 . . . 4 Allies Corrupted 1 | . . . . . . . 1 . . . . Allies Melted 1 | . . . . . . . . . . . 1 Intel | -11 -10 -9 -8 -8 -8 -8 -6 -6 -6 -6 -5 ------- Run | Yrd Mat Mat Mat Sto Rec Scr Fac Low Low Dat Pro Active Infowar (turns) 4957 | . 275 395 250 . . . 1954 765 644 148 526 Optics 4957 | . 275 395 250 . . . 1954 765 644 148 526 Sensors 668 | . . . . . . . . 660 8 . . Traps 53 | . . . 53 . . . . . . . . Robot Analysis Total 1 | . . . . . 1 . . . . . . Derelict Logs Recovered 3 | . . . . . . . . 2 1 . . Drone Launches . | . . . . . . . . . . . . Drone Recoveries . | . . . . . . . . . . . . Exploration | -11 -10 -9 -8 -8 -8 -8 -6 -6 -6 -6 -5 ------------- Run | Yrd Mat Mat Mat Sto Rec Scr Fac Low Low Dat Pro Turns Passed 7465 | 72 348 395 322 292 607 1392 1954 765 644 148 526 Spaces Moved 5165 | 43 228 553 402 212 491 1313 959 413 309 88 154 Core 153 | 14 . 3 . . . . 15 . . . 121 Treads 900 | . . . . . . . 85 413 309 88 5 Legs 705 | 29 228 . . . . . 420 . . . 28 Wheels 1452 | . . . . . . 1013 439 . . . . Hover 89 | . . 89 . . . . . . . . . Flight 1866 | . . 461 402 212 491 300 . . . . . Fastest Speed 26 | 50 120 26 26 26 32 90 90 165 165 170 170 Average Speed 114 | 139 120 34 26 88 101 101 141 167 191 170 315 Slowest Speed 550 | 200 120 200 26 275 107 107 550 170 250 170 400 Overloaded Moves . | . . . . . . . . . . . . Propulsion Burnouts . | . . . . . . . . . . . . Robots Hopped 4 | . . 2 2 . . . . . . . . Potential Cave-ins . | . . . . . . . . . . . . Cave-ins Triggered 1 | . . . 1 . . . . . . . . Exploration Rate (%) 50 | 3 43 49 41 49 85 85 26 59 60 77 29 Regions Visited 11 Branch Regions 7 Pre-discovered Areas 3 | . . . . . . . 1 1 . 1 . Known Exits Taken 8 | . . . 1 1 1 1 1 1 1 1 . Unknown Exits Taken 3 | 1 1 1 . . . . . . . . . Scrap Searched 13 | . . . . . . 9 . 3 1 . . Spaces Dug 29 | . . 5 8 . . . 6 . 10 . . Terrain Destroyed 240 | . . 5 8 37 . . 103 . 52 . 35 Melee 19 | . . 5 8 . . . 6 . . . . Projectile 23 | . . . . . . . 23 . . . . AOE 198 | . . . . 37 . . 74 . 52 . 35 Terrain Rammed . | . . . . . . . . . . . . Walls Destroyed . | . . . . . . . . . . . . Machines Disabled . | . . . . . . . . . . . . Actions | -11 -10 -9 -8 -8 -8 -8 -6 -6 -6 -6 -5 --------- Run | Yrd Mat Mat Mat Sto Rec Scr Fac Low Low Dat Pro Total 6197 | 51 271 670 575 270 585 1367 1363 449 331 87 178 Wait 527 | . 16 30 104 24 63 38 232 8 . . 12 Move 5146 | 42 227 548 397 211 490 1312 958 412 308 87 154 Hop 4 | . . 2 2 . . . . . . . . Pick Up 48 | 2 8 9 6 . 5 5 9 3 1 . . Fast Attach 43 | 6 1 10 1 2 . 2 14 4 1 . 2 Attach 19 | . . 4 2 1 1 1 6 . 3 . 1 Detach 5 | . . 1 . 1 . . 1 . 2 . . Swap 41 | 1 1 5 11 3 4 4 9 3 . . . Drop 29 | . 2 7 5 . 3 5 4 3 . . . Fire 98 | . 16 19 . 7 . . 49 . 3 . 4 Melee 201 | . . 35 25 21 18 . 68 16 13 . 5 Ram . | . . . . . . . . . . . . Kick . | . . . . . . . . . . . . Crush . | . . . . . . . . . . . . Escape Stasis 10 | . . . . . . . 10 . . . . Rewire 4 | . . . . . 1 . 3 . . . . Trap 22 | . . . 22 . . . . . . . . Miscellaneous . | . . . . . . . . . . . . Route ------- -11/Scrapyard -10/Materials (discovered 2 exits: *Mat / [*Min]) -9/Materials (discovered 3 exits: [*Mat x2] / [*Min]) -8/Materials (discovered 2 exits: *Fac / *Sto) -8/Storage -8/Recycling (discovered 2 exits: *Fac / *Scr) -8/Scraptown (discovered 2 exits: *Fac x2) -6/Factory (discovered 2 exits: *Fac / *Low) -6/Lower Caves -6/Lower Caves (discovered 2 exits: *Fac / *Dat) -6/Data Miner -5/Proximity Caves History --------- Turn | Location | Event 28 | -11/Scrapyard | Discovered new exit (range 16) 73 | -11/Scrapyard | Entered Materials 74 | -10/Materials | Met a group of wandering Federalists 154 | -10/Materials | Discovered new exit (range 10) 300 | -10/Materials | Build established: Mutant 310 | -10/Materials | Discovered new exit (range 10) 421 | -10/Materials | Entered another Materials area 421 | -9/Materials | Evolved 2 slots: Propulsion x2 506 | -9/Materials | Discovered new exit (range 14) 579 | -9/Materials | Lost 4 parts (4n) 639 | -9/Materials | Discovered new exit (range 6) 676 | -9/Materials | Core integrity fell below 50% 744 | -9/Materials | Lost 6 parts (2p3n1w) 755 | -9/Materials | Discovered new exit (range 17) 816 | -9/Materials | Entered another Materials area 816 | -8/Materials | Evolved 2 slots: Utility x2 895 | -8/Materials | Build established: Sprinter 1043 | -8/Materials | Crushed by falling debris 1064 | -8/Materials | Discovered new exit (range 6) 1067 | -8/Materials | Identified exit to Factory 1136 | -8/Materials | Discovered new exit (range 8) 1138 | -8/Materials | Identified exit to Storage 1138 | -8/Materials | Entered Storage 1203 | -8/Storage | Lost 3 parts (3n) 1429 | -8/Storage | Used back door to open Recycling access 1429 | -8/Storage | Discovered new exit (range 5) 1430 | -8/Storage | Identified exit to Recycling 1430 | -8/Storage | Entered Recycling 1431 | -8/Recycling | Joined Warlord attack on 0b10 via Recycling 1475 | -8/Recycling | Build established: Mutant 1854 | -8/Recycling | Discovered new exit (range 14) 1952 | -8/Recycling | Scanned before Scraplab entrance 1968 | -8/Recycling | Entered Scraplab 1977 | -8/Recycling | Discovered new exit (range 4) 1979 | -8/Recycling | Identified exit to Scraptown 2037 | -8/Recycling | Entered Scraptown 2037 | -8/Scraptown | Accompanied by 8 allies 2074 | -8/Scraptown | Build established: Commander-Mutant 2075 | -8/Scraptown | Received an X-ray algorithm 2255 | -8/Scraptown | Heard Great Nut preacher, LISTEN AND RECITE! 2317 | -8/Scraptown | Discovered new exit (range 11) 2422 | -8/Scraptown | Visited Cyclists 2444 | -8/Scraptown | Visited Red Mages 2551 | -8/Scraptown | Visited UFD Registry 2566 | -8/Scraptown | Visited Junk Repository 2587 | -8/Scraptown | Visited Comm Corps 2616 | -8/Scraptown | Visited Bundlers 2717 | -8/Scraptown | Visited Symbiants 2897 | -8/Scraptown | Registered with UFD as "Pipeface" 3076 | -8/Scraptown | Visited Scrapoid Pod Storage 3105 | -8/Scraptown | Visited Supply Room 3142 | -8/Scraptown | Visited DA-N13 Charitable Foundation 3151 | -8/Scraptown | Found DCF Scrap (29 items) 3180 | -8/Scraptown | Visited Science Testing Area 3196 | -8/Scraptown | Visited Junk Repository 3238 | -8/Scraptown | Visited A0-MCA Data Center 3245 | -8/Scraptown | Given a B rating by A0-MCA 3249 | -8/Scraptown | Found A0-MCA's Component Scanner 3335 | -8/Scraptown | Met Optimus 3335 | -8/Scraptown | Accepted into 0bPrime 3390 | -8/Scraptown | Discovered new exit (range 5) 3395 | -8/Scraptown | Identified exit to Factory 3429 | -8/Scraptown | Entered Factory 3429 | -6/Factory | Accompanied by 8 allies 3429 | -6/Factory | Evolved 4 slots: Utility x2, Weapon x2 3532 | -6/Factory | Discovered new exit (range 17) 3546 | -6/Factory | Identified exit to Lower Caves 3668 | -6/Factory | Loaded intel: 8 recycling unit locations 3692 | -6/Factory | Lost 3 allies 3733 | -6/Factory | Attached CPS modules to H-61 Shepherd 3783 | -6/Factory | Lost 5 parts (2n1u2w) 3801 | -6/Factory | Lost 3 allies 3827 | -6/Factory | Scrapoid reinforcements arrived 3952 | -6/Factory | Fabricated Y-45 Defender (x2) 3978 | -6/Factory | Lost 3 allies 4056 | -6/Factory | Fabricated Y-45 Defender (x2) 4182 | -6/Factory | Found Scrap Suit 4474 | -6/Factory | Build established: Scavenger-Mutant 4649 | -6/Factory | Discovered new exit (range 15) 4686 | -6/Factory | Identified exit to Factory 4720 | -6/Factory | P-60 Hacker assimilated allied Defender 5d 4742 | -6/Factory | System corruption reached 10% 4927 | -6/Factory | Lost 3 parts (3n) 5140 | -6/Factory | Build established: Mutant 5177 | -6/Factory | Core integrity fell below 50% 5216 | -6/Factory | Lost 6 parts (1p4n1u) 5383 | -6/Factory | Entered Lower Caves 5789 | -6/Lower Caves | Build established: Scavenger-Assassin 5956 | -6/Lower Caves | Identified exit to Lower Caves 6092 | -6/Lower Caves | Learned location of Extension (-4) 6148 | -6/Lower Caves | Entered another Lower Caves area 6184 | -6/Lower Caves | Core integrity fell below 20% 6209 | -6/Lower Caves | Lost 6 parts (1p3n1u1w) 6229 | -6/Lower Caves | Discovered exit to Factory (range 7) 6478 | -6/Lower Caves | Build established: Mutant 6501 | -6/Lower Caves | Learned Factory security intel 6764 | -6/Lower Caves | Discovered new exit (range 10) 6790 | -6/Lower Caves | Identified exit to Data Miner 6792 | -6/Lower Caves | Entered Data Miner 6792 | -6/Data Miner | Discovered new exit (range 6) 6816 | -6/Data Miner | Met Data Miner 6871 | -6/Data Miner | Learned location of Section 7 (-2) 6871 | -6/Data Miner | Acquired the access code to Warlord's prototype stash 6896 | -6/Data Miner | Received God Mode back door access code from Data Miner 6939 | -6/Data Miner | Identified exit to Proximity Caves 6940 | -6/Data Miner | Entered Proximity Caves 7007 | -5/Proximity Caves | Lost 3 parts (1n2w) 7157 | -5/Proximity Caves | Spotter reported a threat 7255 | -5/Proximity Caves | Spotter reported a threat 7279 | -5/Proximity Caves | Escorted by Enhanced Grunt 7310 | -5/Proximity Caves | Spotter reported a threat 7466 | -5/Proximity Caves | Destroyed by G-67 Veteran with Field Laser Last Messages --------------- 07338_ System corrupted: Matter fused (-8). 07341_ Corrupted Carbon-fiber Leg self-destruct mechanism malfunctions. 07356_ System corrupted: Matter fused (-10). 07390_ System corrupted: IFF burst signal emitted. 07405_ F,UTIWIL%A2YSFP,CC/F =6Z5=YCIEO 07465_ G-50 Soldier system terminally corrupted. Map ----- +----------------------------------------------------+ | ?????????????????????????????????????????????????? | | ?????????????????????????????????????????????????? | | ?????????????????????????????????????????????????? | | ?????????????????????????????????????????????????? | | ?????????????????????????????????????????????????? | | ?????????????????????????????????????????????????? | | ???????????????????????????????????# ???????????? | | ??????????????????????????????????? #????????? | | ??????????????????????????#???????# ##??????? | | ?????????????????????????## ?????# %% ???? | | ????????????????????????? ???## ! #???? | | ?????????????????????????? ???# ????? | | ?????????????????????????? ??# ?????? | | ??????????????????????????? ??# #?????? | | ?#?##############?????????? ### ###???? | | # #??????????? ???? | | # #??????????? % ????? | | # #???????????? ??????? | | # " #???????????? ???????? | | # " " #????????????? ?????????? | | # " " "" " #????????????? ??????????? | | # " "" "" #?????????????? #???????????? | | # """""" " #???#####?????? ] ##??????????? | | # """ " " #???# ##?????#% ##?????????? | | # " " "" ##??# ####### #?????????? | | # """""" #### @# #?????????? | | # "" " gg #?????????? | | # " " ## ### #????????? | | # " " "" # ## #### #????????? | | # "" """" ## ## #?# ##????????? | | # """ " ### ## ## ####?????????? | | # " " #?####### ## ###????????????? | | # " #???????# ## #####??????????????? | | # #???????# ###???????????????????? | | #???????# #?????????????????????? | | #######""###???????# #?????????????????????? | | ######?????## ???????# ?????????????????????? | | ##?????????? #?????# ?????????????????????? | | #????? ##?? ## #????## ?????????????????????? | | ### ##? % #??##?????? ?????????????????????? | | ## ##?????????? ?????????????????????? | | #??????????? ?????????????????????? | | #### #?????????? ????????????????????? | | ????? ### #?????????? ????????????????????? | | ???????##?# ??????????? ????????????????????? | | ####??????# ???????????## ????????????????????? | | ##?????## ????????????? ????????????????????? | | #??????# ?????????????????????????????????? | | #?????? ?????????????????????????????????? | | ##?????? ?????????????????????????????????? | +----------------------------------------------------+ Best States ------------- Heat Dissipation 37 Energy Generation 18 Energy Capacity 290 Matter Stores 300 Matter Capacity 300 Sight Range 22 Robot Scan Range 15 Terrain Scan Density 10 Armor Coverage 150 Resistance: EM 15 Weapon Cycling 15 Evasion (%) 64 Core Analysis 6 Recoil Reduction 4 Authchip Count 3 Trap Extractor Capacity 4 Item Schematics ----------------- Combat Drone Bay | -6/Data Miner | Free Enh. Flexi-carbon Leg | -6/Data Miner | Free Exp. Heat Sink | -6/Data Miner | Free Imp. Gyrokinetic Inverter | -6/Data Miner | Free Adv. Particle Charger | -6/Data Miner | Free Lgt. Regenerative Plating | -6/Data Miner | Free Dispersion Rifle | -6/Data Miner | Free Cld. Plasma Rifle | -6/Data Miner | Free Com. HERF Cannon | -6/Data Miner | Free KE Penetrator | -6/Data Miner | Free Robot Schematics ------------------ Y-45 Defender | -8/Recycling | Hacked H-66 Slayer | -6/Data Miner | Free L-41 Fighter | -6/Data Miner | Free B-60 Warrior | -6/Data Miner | Free Fabricated ------------ Y-45 Defender | x2 | -6/Factory | Authchip Y-45 Defender | x2 | -6/Factory | Authchip Repaired ---------- Nothing Studied --------- Flail | -9/Materials | Hacked VTOL Module | -9/Materials | Hacked Alien Tech Used ----------------- None Achievements -------------- Wiki Contributor Challenges ------------ None Game ------ Seed DisposableTransmissionClaw Manual? 0 Play Time 00:53:58 Cumulative 219.3 hours Start 2026.07.01 @ 16:23:06 End 2026.07.01 @ 17:20:21 Sessions 1 Manual Loads 0 Difficulty Rogue Special Mode None Game No. 366 Rogue 366 Adventurer 0 Explorer 0 Win Type - Total 2 Types 2/0/0/0/0/0/0/0/0/0 Lore% 66 Gallery% 61 Achievement% 48 Wizard Run 0 Options --------- Layout 2 ASCII 0 Keyboard 1 Movement Numpad Keybinds 0 Fullscreen 1 Font 20/SmallcapsGlow Map View 64x51 Zoom Use 0% Tactical HUD 1 Map Filters NONE Filters NONE Steam 1 RUN: 067b6de9-784b-48b2-a39f-849369483c5f